bitfinex-derivatives/quotes_ETHF0:USTF0_20250125
["timestamp","ask_amount","ask_price","bid_price","bid_amount"]
[1737784975297,1.5294,3301.8,3301.6,2.33399201]
[1737784975596,1.0339,3301.8,3301.7,0.48466]
[1737784975987,1.0339,3301.8,3301.6,2.81867201]
[1737784976894,1.0339,3301.8,3301.6,2.33399201]
[1737784977198,1.51855,3301.8,3301.6,2.33399201]
[1737784977994,1.0339,3301.8,3301.6,2.33399201]
[1737784978386,1.51856,3301.8,3301.6,2.33399201]
[1737784978591,1.0339,3301.8,3301.6,2.33399201]
[1737784979298,1.0339,3301.8,3301.7,0.48466]
[1737784979899,0.5204,3301.8,3301.7,0.48466]
[1737784982895,0.4763,3302.3,3301.6,4.06292297]
[1737784983100,0.4763,3302.3,3302.2,2.81858201]
[1737784983301,0.4763,3302.3,3302.2,2.33399201]
[1737784985705,0.4763,3302.3,3302.2,2.81858201]
[1737784986299,0.4763,3302.3,3302.2,2.33399201]
[1737784987703,0.96088,3302.3,3302.2,2.33399201]
[1737784987902,0.4763,3302.3,3302.2,2.33399201]
[1737784988601,0.96088,3302.3,3302.2,2.33399201]
[1737784988804,0.4763,3302.3,3302.2,2.33399201]
[1737784992106,0.4763,3302.3,3301.9,2.33853623]
[1737784992509,0.48462,3302.0,3301.9,2.33853623]
[1737784993203,0.48459,3302.2,3301.9,2.33853623]
[1737784993405,0.97101,3302.1,3301.9,2.33853623]
[1737784993910,3.2078,3302.0,3301.9,2.33853623]
[1737784995207,3.2078,3302.0,3301.9,2.82317623]
[1737784995610,0.4763,3302.3,3302.1,0.4846]
[1737784995806,0.479,3302.4,3302.2,2.33399201]
[1737784996010,3.2078,3302.5,3302.2,2.33399201]
[1737784996011,9.13330673,3302.5,3302.4,0.48456]
[1737784997006,9.13330673,3302.5,3302.3,1.5228]
[1737784997206,9.13330673,3302.5,3302.2,2.33399201]
[1737784997508,3.2078,3302.5,3302.2,2.33399201]
[1737784997712,0.4779,3302.4,3302.2,2.33399201]
[1737784997916,0.9896,3302.4,3302.2,2.33399201]
[1737784998410,0.9896,3302.4,3302.2,2.81858201]
[1737784998812,0.4779,3302.4,3302.2,2.81858201]
[1737784999313,0.4779,3302.4,3302.2,2.33399201]
[1737784999515,3.2078,3302.5,3302.3,0.48458]
[1737784999708,0.4845,3302.9,3302.3,0.48458]
[1737784999907,0.4845,3302.8,3302.5,2.33399201]
[1737785000714,0.48449,3302.9,3302.5,2.81663332]
[1737785001217,0.48451,3302.8,3302.5,2.33208332]
[1737785001715,0.48449,3302.9,3302.5,2.81662332]
[1737785001915,0.48449,3302.9,3302.6,0.48453]
[1737785002116,3.2078,3302.7,3302.6,0.48453]
[1737785004317,3.2078,3302.7,3302.5,2.81662332]
[1737785004612,3.2078,3302.7,3302.5,2.33208332]
[1737785006617,3.69232,3302.7,3302.5,2.33208332]
[1737785006817,0.48453,3302.6,3302.5,2.33208332]
[1737785008012,3.69233,3302.7,3302.5,2.33208332]
[1737785008223,3.2078,3302.7,3302.5,2.33208332]
[1737785008414,0.48453,3302.6,3302.5,2.33208332]
[1737785008915,3.69233,3302.7,3302.5,2.33208332]
[1737785010220,0.48454,3302.6,3302.2,2.81857201]
[1737785010520,1.46894,3302.6,3302.2,2.81857201]
[1737785010721,0.5219,3302.5,3302.2,2.33399201]
[1737785011019,0.5219,3302.5,3302.2,2.81857201]
[1737785011222,0.48458,3302.3,3302.2,2.33399201]
[1737785011617,0.5219,3302.5,3302.2,2.33399201]
[1737785011822,0.48457,3302.4,3302.2,2.33399201]
[1737785013725,0.48458,3302.3,3302.2,2.33399201]
[1737785013916,0.5219,3302.5,3302.0,1.483]
[1737785014115,0.48458,3302.3,3302.0,1.483]
[1737785014315,0.5219,3302.5,3302.0,1.483]
[1737785014517,3.2078,3302.2,3302.0,1.483]
[1737785015015,3.2078,3302.2,3302.0,1.96762]
[1737785015224,3.2078,3302.2,3302.1,0.48461]
[1737785015614,2.997,3302.6,3302.3,0.48457]
[1737785015817,2.997,3302.6,3302.4,2.33399201]
[1737785016025,2.997,3302.6,3302.5,1.0162]
[1737785016234,2.997,3302.6,3302.5,1.4969]
[1737785016618,3.48154,3302.6,3302.4,2.33399201]
[1737785016813,0.4891,3302.5,3302.1,2.81859201]
[1737785018520,0.4891,3302.5,3302.1,2.33399201]
[1737785018722,0.4891,3302.5,3302.2,0.48459]
[1737785019528,0.4891,3302.5,3302.1,2.81859201]
[1737785020721,5.94736336,3302.4,3302.1,2.81859201]
[1737785020923,5.94736336,3302.4,3302.1,2.33399201]
[1737785021317,3.2078,3302.3,3302.1,2.33399201]
[1737785021627,3.69239,3302.3,3302.1,2.33399201]
[1737785022020,3.2078,3302.3,3302.1,2.33399201]
[1737785023327,5.94736336,3302.2,3302.1,2.33399201]
[1737785028439,9.15516336,3302.3,3302.1,2.33399201]
[1737785029231,9.15516336,3302.3,3302.1,2.81859201]
[1737785031635,9.15516336,3302.3,3302.2,1.58554116]
[1737785031840,9.15516336,3302.3,3302.2,1.10095116]
[1737785032235,9.15516336,3302.3,3302.2,1.58554116]
[1737785033038,5.94736336,3302.3,3302.2,1.58554116]
[1737785037734,5.94736336,3302.4,3302.2,1.10095116]
[1737785037938,5.94736336,3302.4,3302.3,0.48458]
[1737785038949,5.94736336,3302.4,3302.2,1.10095116]
[1737785039148,0.4848,3302.3,3302.2,1.10095116]
[1737785039946,0.4848,3302.3,3302.2,1.58554116]
[1737785040241,0.4848,3302.3,3302.2,1.10095116]
[1737785043243,6.44503405,3302.3,3302.2,1.10095116]
[1737785048445,0.4848,3302.3,3302.2,1.10095116]
[1737785050849,0.4848,3302.3,3302.2,1.58554116]
[1737785052351,5.96023405,3302.4,3302.2,1.10095116]
[1737785052551,5.96023405,3302.4,3302.3,0.48458]
[1737785061454,5.96023405,3302.4,3302.2,1.10095116]
[1737785064355,0.48459,3302.2,3302.0,1.10095116]
[1737785064658,3.69241,3302.1,3302.0,1.10095116]
[1737785064959,4.19041,3302.1,3302.0,1.10095116]
[1737785065155,0.48462,3302.0,3301.9,0.00454422]
[1737785065356,0.48465,3301.8,3301.7,3.1641464]
[1737785065758,5.48465,3301.8,3301.7,3.1641464]
[1737785066665,5.48465,3301.8,3301.7,2.8538464]
[1737785066858,5.48465,3301.8,3301.7,1.3613464]
[1737785067052,0.48466,3301.7,3301.6,7.11621961]
[1737785067259,0.48466,3301.7,3301.6,4.04356601]
[1737785067260,4.79341116,3301.7,3301.6,4.04356601]
[1737785067459,9.79341116,3301.7,3301.6,4.04356601]
[1737785067764,8.69246,3301.7,3301.6,4.04356601]
[1737785068169,0.48469,3301.5,3301.4,0.00454422]
[1737785068458,3.48169,3301.5,3301.4,0.00454422]
[1737785070262,2.997,3301.5,3301.4,0.48925422]
[1737785071868,3.69247,3301.7,3301.4,0.48925422]
[1737785072071,3.69247,3301.7,3301.4,0.00454422]
[1737785072365,3.2078,3301.7,3301.5,0.48469]
[1737785072567,3.2078,3301.7,3301.6,0.4799]
[1737785073864,2.997,3301.9,3301.6,0.4799]
[1737785074069,0.00454422,3302.1,3301.8,2.32785111]
[1737785074269,0.00454422,3302.1,3302.0,0.48462]
[1737785077763,0.00454422,3302.1,3301.9,1.004]
[1737785077961,0.00454422,3302.1,3301.9,1.48863]
[1737785078162,4.75823621,3302.1,3301.9,1.48863]
[1737785078764,5.24284621,3302.1,3301.9,1.48863]
[1737785079159,5.24284621,3302.1,3301.6,0.4799]
[1737785079160,4.75823621,3302.1,3301.6,0.4799]
[1737785079365,3.69245,3301.8,3301.6,0.96457]
[1737785080163,0.48466,3301.7,3301.6,0.4799]
[1737785080673,3.69245,3301.8,3301.6,0.4799]
[1737785080870,0.48467,3301.7,3301.5,2.32785111]
[1737785081075,0.48467,3301.7,3301.5,2.80685111]
[1737785081970,0.48468,3301.6,3301.5,2.80685111]
[1737785084680,0.48468,3301.6,3301.5,0.479]
[1737785085182,0.48468,3301.6,3301.4,0.00454422]
[1737785085183,0.48469,3301.5,3301.4,0.00454422]
[1737785085586,5.48469,3301.5,3301.4,0.00454422]
[1737785086687,0.48469,3301.5,3301.4,0.00454422]
[1737785095296,6.42057139,3301.5,3301.4,0.00454422]
[1737785096294,9.62837139,3301.5,3301.4,0.00454422]
[1737785101389,3.69249,3301.5,3301.4,0.00454422]
[1737785102197,6.02034111,3301.5,3301.4,0.00454422]
[1737785102395,14.93108038,3301.5,3301.4,0.00454422]
[1737785102603,14.97983069,3301.5,3301.4,0.00454422]
[1737785102899,14.98493069,3301.5,3301.4,0.00454422]
[1737785103901,14.93618038,3301.5,3301.4,0.00454422]
[1737785104101,14.98493183,3301.5,3301.4,0.00454422]
[1737785104600,14.98493183,3301.5,3301.4,4.22e-06]
[1737785105593,14.98493031,3301.5,3301.4,4.22e-06]
[1737785106506,14.98492297,3301.5,3301.4,4.22e-06]
[1737785108404,9.98492297,3301.5,3301.4,4.22e-06]
[1737785109604,9.97982297,3301.5,3301.4,4.22e-06]
[1737785110207,14.97982297,3301.5,3301.4,4.22e-06]
[1737785111608,14.9798327,3301.5,3301.4,4.22e-06]
[1737785114202,9.9798327,3301.5,3301.4,4.22e-06]
[1737785114403,9.97983241,3301.5,3301.4,4.22e-06]
[1737785114703,14.97983241,3301.5,3301.4,4.22e-06]
[1737785115913,14.93108038,3301.5,3301.4,4.22e-06]
[1737785116210,0.48483,3300.6,3300.5,1.0114]
[1737785116412,3.69263,3300.6,3300.5,1.0114]
[1737785116605,3.69263,3300.6,3300.5,0.5102]
[1737785116906,0.48493,3299.9,3299.8,0.523]
[1737785117116,3.69273,3299.9,3299.8,0.523]
[1737785119309,8.44341764,3299.9,3299.8,0.523]
[1737785120308,7.95848764,3299.9,3299.5,0.52354422]
[1737785120509,0.48497,3299.6,3299.5,0.52354422]
[1737785122910,0.955,3299.7,3299.5,0.52354422]
[1737785123213,1.43996,3299.7,3299.5,0.52354422]
[1737785124815,0.955,3299.7,3299.5,0.52354422]
[1737785125020,0.48497,3299.6,3299.5,0.52354422]
[1737785125406,3.48197,3299.6,3299.5,0.52354422]
[1737785133017,7.33740385,3299.6,3299.5,0.52354422]
[1737785134321,9.38911803,3299.6,3299.5,0.00454422]
[1737785134521,4.38911803,3299.6,3299.5,0.00454422]
[1737785134822,9.38911803,3299.6,3299.5,0.00454422]
[1737785136716,15.32747758,3299.6,3299.5,0.00454422]
[1737785136914,15.2787634,3299.6,3299.5,0.00454422]
[1737785137217,15.327484,3299.6,3299.5,0.00454422]
[1737785138521,10.327484,3299.6,3299.5,0.00454422]
[1737785140423,4.34040385,3299.6,3299.5,0.00454422]
[1737785140624,4.38910509,3299.6,3299.5,0.00454422]
[1737785142222,4.38910594,3299.6,3299.5,0.00454422]
[1737785145729,5.34410594,3299.6,3299.5,0.00454422]
[1737785147426,5.34410227,3299.6,3299.5,0.00454422]
[1737785148027,5.29540385,3299.6,3299.5,0.00454422]
[1737785148227,5.34410763,3299.6,3299.5,0.00454422]
[1737785148830,11.26407949,3299.6,3299.5,0.00454422]
[1737785149720,11.21537571,3299.6,3299.5,0.00454422]
[1737785149927,11.26408469,3299.6,3299.5,0.00454422]
[1737785150832,11.26408711,3299.6,3299.5,0.00454422]
[1737785154431,11.26409852,3299.6,3299.5,0.00454422]
[1737785154928,5.34412666,3299.6,3299.5,0.00454422]
[1737785156328,5.29540385,3299.6,3299.5,0.00454422]
[1737785157426,1.43997,3299.6,3299.5,0.00454422]
[1737785158020,0.64987,3299.6,3299.5,0.00454422]
[1737785158229,1.43997,3299.6,3299.5,0.00454422]
[1737785160135,0.48497,3299.6,3299.5,0.00454422]
[1737785162850,7.62180603,3299.6,3299.5,0.00454422]
[1737785165648,8.72528235,3299.6,3299.5,0.00454422]
[1737785168850,7.13683603,3299.6,3299.5,0.00454422]
[1737785169154,8.32630871,3299.8,3299.5,0.00454422]
[1737785169155,8.32630871,3299.8,3299.5,6.59301054]
[1737785169453,8.32630871,3299.8,3299.7,1.10347632]
[1737785171042,3.69274,3299.9,3299.7,1.10347632]
[1737785171749,3.69274,3299.9,3299.5,0.48952422]
[1737785172353,3.69274,3299.9,3299.6,0.9956]
[1737785174752,3.2078,3299.9,3299.6,0.9956]
[1737785174960,0.48495,3299.8,3299.6,0.9956]
[1737785176252,3.69273,3299.9,3299.6,1.48057]
[1737785176560,0.48495,3299.8,3299.6,0.9956]
[1737785178359,3.2078,3299.7,3299.6,0.9956]
[1737785180657,1.16943603,3299.7,3299.6,8.81041679]
[1737785181159,0.48944422,3300.2,3299.7,0.48496]
[1737785181460,0.48944422,3300.2,3299.9,0.48492]
[1737785181660,0.00454422,3300.2,3300.1,0.4849]
[1737785181862,0.00454422,3300.2,3300.1,1.0078]
[1737785182059,0.00454422,3300.2,3300.1,1.5222]
[1737785182465,0.00454422,3300.2,3300.1,6.5222]
[1737785183165,8.32630871,3300.6,3300.1,6.0373]
[1737785183465,8.32630871,3300.6,3300.5,0.48484]
[1737785184358,0.4848,3300.8,3300.4,2.32984679]
[1737785184666,0.00454422,3300.9,3300.4,2.32984679]
[1737785184971,0.00454422,3300.9,3300.6,0.48482]
[1737785185161,0.00454422,3300.9,3300.7,0.99051]
[1737785185356,0.00454422,3300.9,3300.7,0.5057]
[1737785185559,0.00454422,3300.9,3300.8,0.9677]
[1737785185962,0.00454422,3300.9,3300.8,5.9677]
[1737785186362,0.00454422,3300.9,3300.8,6.4559]
[1737785188269,0.00454422,3300.9,3300.8,1.4559]
[1737785188772,0.00454422,3300.9,3300.8,6.4559]
[1737785189663,0.00454422,3300.9,3300.8,1.4559]
[1737785191069,0.00454422,3300.9,3300.8,6.4559]
[1737785193067,0.4804,3301.7,3300.8,5.9711]
[1737785193369,0.4804,3301.7,3301.5,0.48469]
[1737785193565,0.4804,3301.7,3301.6,0.99478]
[1737785193770,0.5158,3301.8,3301.7,0.48466]
[1737785193965,0.5158,3301.8,3301.6,0.99478]
[1737785194765,1.00045,3301.8,3301.6,0.5101]
[1737785195270,0.5158,3301.8,3301.6,0.5101]
[1737785196367,0.5158,3301.8,3301.6,0.99478]
[1737785196568,0.5158,3301.8,3301.6,0.5101]
[1737785197967,0.5158,3301.8,3301.6,0.99478]
[1737785199469,0.5158,3301.8,3301.6,0.5101]
[1737785199670,1.00046,3301.8,3301.6,0.5101]
[1737785200177,1.00046,3301.8,3301.6,0.99478]
[1737785200376,0.5158,3301.8,3301.6,0.99478]
[1737785202179,1.00045,3301.8,3301.6,0.99478]
[1737785203980,0.5158,3301.8,3301.6,0.99478]
[1737785205683,0.5158,3301.8,3301.6,2.09638344]
[1737785206579,0.5158,3301.8,3301.7,0.48466]
[1737785209977,0.5158,3301.8,3301.6,1.61170344]
[1737785210175,0.5158,3301.8,3301.6,2.09637344]
[1737785210481,0.5158,3301.8,3301.7,0.48466]
[1737785215988,0.4935,3302.0,3301.6,1.61170344]
[1737785216188,0.4935,3302.0,3301.9,1.58624344]
[1737785219202,0.97812,3302.0,3301.9,1.10160344]
[1737785219400,0.48465,3301.8,3301.7,1.10160344]
[1737785220706,0.48464,3301.9,3301.7,1.58626344]
[1737785220903,0.4935,3302.0,3301.7,1.10160344]
[1737785221094,0.48464,3301.9,3301.8,0.5076]
[1737785221405,0.4935,3302.0,3301.5,1.58629344]
[1737785221699,0.48466,3301.8,3301.6,0.48468]
[1737785221895,0.48464,3301.9,3301.6,0.48468]
[1737785222104,0.5081,3301.7,3301.6,0.48468]
[1737785222401,0.5081,3301.7,3301.6,1.58628344]
[1737785233304,0.4935,3302.0,3301.9,0.48464]
[1737785233503,0.996,3302.0,3301.9,0.48464]
[1737785234505,0.996,3302.0,3301.9,0.98354]
[1737785236008,0.48464,3301.9,3301.7,0.48466]
[1737785239617,0.996,3302.0,3301.6,1.10160344]
[1737785239804,0.996,3302.0,3301.8,0.48464]
[1737785239805,1.48063,3302.0,3301.8,0.48464]
[1737785240311,0.996,3302.0,3301.9,0.48464]
[1737785241811,0.996,3302.0,3301.8,0.48464]
[1737785244013,1.48062,3302.0,3301.8,0.48464]
[1737785244214,0.996,3302.0,3301.8,0.48464]
[1737785244615,0.996,3302.0,3301.9,0.48464]
[1737785244922,0.996,3302.0,3301.8,0.48464]
[1737785246116,0.996,3302.0,3301.6,1.10160344]
[1737785246117,0.996,3302.0,3301.9,0.48464]
[1737785247119,0.4935,3302.0,3301.9,0.48464]
[1737785248221,0.4935,3302.0,3301.9,0.99344]
[1737785252425,0.4838,3302.2,3302.1,0.48461]
[1737785254429,0.4838,3302.2,3301.9,0.5088]
[1737785254730,0.4838,3302.2,3302.0,0.48461]
[1737785256625,0.9684,3302.2,3302.0,0.48461]
[1737785259222,0.4838,3302.2,3301.9,0.5088]
[1737785259428,0.48464,3301.9,3301.6,0.48467]
[1737785259628,1.5277,3301.8,3301.6,0.99957]
[1737785260231,2.01235,3301.8,3301.6,0.99957]
[1737785263726,2.01235,3301.8,3301.7,0.45500648]
[1737785264731,0.48468,3301.7,3301.5,0.5203]
[1737785265033,0.48468,3301.7,3301.6,0.45503631]
[1737785266436,2.01236,3301.8,3301.6,0.93965077]
[1737785266638,2.01236,3301.8,3301.6,0.48467]
[1737785267135,2.01235,3301.8,3301.6,0.48467]
[1737785267733,1.5277,3301.8,3301.4,0.00454422]
[1737785267939,0.48469,3301.6,3301.5,0.45492636]
[1737785268140,0.48467,3301.7,3301.5,0.93961636]
[1737785268341,2.01236,3301.8,3301.6,0.93959636]
[1737785268542,2.01236,3301.8,3301.6,0.48467]
[1737785268842,2.01236,3301.8,3301.7,0.5169]
[1737785270339,2.01236,3301.8,3301.7,1.00156]
[1737785270941,1.0115,3301.8,3301.7,1.00156]
[1737785271141,3.69241,3302.1,3301.9,0.48462]
[1737785271338,3.2078,3302.1,3302.0,0.48462]
[1737785271740,2.0022,3302.2,3302.0,0.48462]
[1737785273743,1.5176,3302.2,3302.0,0.48462]
[1737785273934,2.00219,3302.2,3302.0,0.48462]
[1737785274734,1.5176,3302.2,3302.0,0.48462]
[1737785274939,1.5176,3302.2,3302.1,1.58621344]
[1737785275137,1.0283,3302.2,3302.1,1.58621344]
[1737785275738,8.32630871,3302.3,3302.1,1.10160344]
[1737785275930,8.32630871,3302.3,3302.2,0.48459]
[1737785276244,8.32630871,3302.3,3302.2,0.98279]
[1737785278238,10.01778138,3302.5,3302.2,0.4982]
[1737785278239,0.502,3302.5,3302.2,0.4982]
[1737785278438,0.502,3302.5,3302.4,1.58616344]
[1737785282750,0.4783,3302.7,3302.6,0.48453]
[1737785282946,0.9729,3302.8,3302.6,1.10160344]
[1737785283149,0.9729,3302.8,3302.7,0.48452]
[1737785283348,0.9729,3302.8,3302.7,0.98502]
[1737785284549,0.9729,3302.8,3302.7,0.48452]
[1737785310161,0.9729,3302.8,3302.7,0.93448361]
[1737785310366,0.9729,3302.8,3302.7,0.93447812]
[1737785311963,0.9729,3302.8,3302.7,0.93450532]
[1737785312862,3.2078,3303.1,3302.7,0.44998532]
[1737785313064,3.69226,3303.1,3303.0,1.10160344]
[1737785313366,3.69226,3303.1,3303.0,1.55158876]
[1737785313963,3.69226,3303.1,3303.0,1.5514823]
[1737785314270,3.2078,3303.1,3303.0,2.0359523]
[1737785314469,3.2078,3303.1,3303.0,1.5514823]
[1737785314668,3.69226,3303.1,3303.0,1.5514823]
[1737785315470,3.2078,3303.1,3303.0,2.0359523]
[1737785315667,3.69226,3303.1,3303.0,1.5514823]
[1737785315866,3.2078,3303.1,3303.0,2.0359523]
[1737785316570,2.00602,3303.4,3303.1,0.48445]
[1737785316771,2.00602,3303.4,3303.2,1.58604344]
[1737785316971,2.00602,3303.4,3303.2,1.10160344]
[1737785317366,2.00602,3303.4,3303.2,1.58604344]
[1737785318072,1.5216,3303.4,3303.3,0.48443]
[1737785318668,1.5216,3303.4,3303.3,1.42055787]
[1737785318870,1.5216,3303.4,3303.3,0.97103]
[1737785319071,1.5216,3303.4,3303.3,0.4866]
[1737785320673,2.00602,3303.4,3303.3,0.4866]
[1737785320977,1.5216,3303.4,3303.3,0.97103]
[1737785321372,1.5216,3303.4,3303.3,0.4866]
[1737785321573,1.5216,3303.4,3303.3,0.93596316]
[1737785321773,1.0361,3303.4,3303.3,1.42039316]
[1737785322075,3.2078,3303.7,3303.3,1.42039316]
[1737785322076,3.2078,3303.7,3303.6,0.48439]
[1737785322274,3.2078,3303.7,3303.6,2.0353566]
[1737785322475,3.2078,3303.7,3303.6,2.03521186]
[1737785322676,1.5394,3303.8,3303.6,1.55082186]
[1737785322875,1.5394,3303.8,3303.7,0.48437]
[1737785323076,1.5394,3303.8,3303.7,0.98407]
[1737785323878,0.5252,3303.8,3303.7,0.98407]
[1737785326077,0.498,3304.0,3303.7,0.4997]
[1737785326278,0.498,3304.0,3303.9,1.58594344]
[1737785327867,0.4981,3304.1,3304.0,0.48433]
[1737785328079,0.4981,3304.1,3303.9,1.58594344]
[1737785328269,0.5039,3304.0,3303.9,1.58594344]
[1737785334991,0.4981,3304.1,3303.9,1.10160344]
[1737785335180,0.4981,3304.1,3304.0,0.48433]
[1737785337482,0.4782,3304.4,3304.0,1.10160344]
[1737785337680,0.4782,3304.4,3303.9,4.30940344]
[1737785337681,0.9763,3304.4,3304.3,1.58588344]
[1737785340080,3.2078,3305.0,3304.9,0.4842]
[1737785340280,3.2078,3305.0,3304.9,1.58580344]
[1737785340584,3.2078,3305.0,3304.9,1.10160344]
[1737785341180,4.19238,3305.0,3304.9,1.10160344]
[1737785341485,3.7082,3305.0,3304.9,1.10160344]
[1737785341685,4.19238,3305.0,3304.9,1.10160344]
[1737785342478,3.7082,3305.0,3304.9,1.58580344]
[1737785342675,3.7082,3305.0,3304.9,1.10160344]
[1737785342886,0.48421,3304.8,3304.7,1.10160344]
[1737785343185,0.48425,3304.6,3304.5,1.10160344]
[1737785343381,0.48428,3304.4,3304.3,1.10160344]
[1737785345688,0.48428,3304.4,3304.1,0.4843]
[1737785346484,0.48428,3304.4,3304.2,0.4843]
[1737785346892,0.48428,3304.4,3304.0,2.81614714]
[1737785347091,0.48428,3304.4,3304.1,0.4843]
[1737785349186,0.48428,3304.4,3304.0,2.81614714]
[1737785349187,0.48435,3303.9,3303.7,2.32344714]
[1737785349593,1.47276,3303.8,3303.6,0.48438]
[1737785350194,0.9884,3303.8,3303.6,0.48438]
[1737785351897,0.9884,3303.8,3303.7,0.44758906]
[1737785352093,0.9884,3303.8,3303.7,0.4475868]
[1737785353101,0.9884,3303.8,3303.6,0.48438]
[1737785353702,1.47276,3303.8,3303.5,3.6922]
[1737785357610,0.4844,3303.6,3303.3,0.48896422]
[1737785358314,4.1962,3303.8,3303.3,0.00454422]
[1737785358512,0.48438,3303.7,3303.4,0.48441]
[1737785358812,4.1962,3303.8,3303.4,2.32344714]
[1737785359017,4.1962,3303.8,3303.6,0.48438]
[1737785359218,4.68056,3303.8,3303.6,0.48438]
[1737785359516,4.68056,3303.8,3303.6,0.48439]
[1737785359714,4.68056,3303.8,3303.5,1.00629]
[1737785360514,0.4804,3303.7,3303.5,1.00629]
[1737785363313,0.4804,3303.7,3303.6,0.48439]
[1737785364218,0.4804,3303.7,3303.5,1.00629]
[1737785364521,0.4804,3303.7,3303.6,0.48439]
[1737785365826,0.4804,3303.7,3303.6,1.58466172]
[1737785366519,0.4804,3303.7,3303.6,1.10027172]
[1737785368122,0.96478,3303.7,3303.5,0.48439]
[1737785368323,0.4804,3303.7,3303.5,0.48439]
[1737785368714,0.4804,3303.7,3303.6,1.10027172]
[1737785369214,0.4804,3303.7,3303.6,1.58466172]
[1737785370623,0.4804,3303.7,3303.6,1.10027172]
[1737785370923,0.4804,3303.7,3303.6,1.58466172]
[1737785372119,4.1962,3303.8,3303.7,0.48437]
[1737785372320,4.1962,3303.8,3303.7,1.00477]
[1737785372515,3.6996,3303.8,3303.7,1.00477]
[1737785372720,3.6996,3303.8,3303.7,1.4522982]
[1737785373224,3.6996,3303.8,3303.7,1.00477]
[1737785373420,3.6996,3303.8,3303.7,1.45245181]
[1737785375328,0.4918,3303.8,3303.7,1.45245181]
[1737785375627,3.6996,3303.8,3303.7,1.45245181]
[1737785376526,3.6996,3303.8,3303.7,1.00477]
[1737785377532,3.6996,3303.8,3303.7,0.48437]
[1737785378230,3.6996,3303.8,3303.7,0.93243328]
[1737785378937,3.6996,3303.8,3303.7,0.93243154]
[1737785379333,3.6996,3303.8,3303.7,0.48437]
[1737785379531,3.6996,3303.8,3303.7,0.932468]
[1737785382941,3.6996,3303.8,3303.7,0.448098]
[1737785383136,0.4844,3303.6,3303.4,1.59257172]
[1737785383336,1.0374,3303.5,3303.4,1.59257172]
[1737785383536,1.5218,3303.5,3303.4,2.04085478]
[1737785383836,1.0374,3303.5,3303.4,2.04085478]
[1737785384233,1.0374,3303.5,3303.4,2.52527478]
[1737785384944,1.0374,3303.5,3303.4,2.07699172]
[1737785385131,1.0374,3303.5,3303.4,1.58469172]
[1737785385337,0.48442,3303.4,3303.3,0.00454422]
[1737785386441,3.69222,3303.4,3303.3,0.00454422]
[1737785392749,3.2078,3303.4,3303.3,0.48897422]
[1737785394350,1.52181,3303.5,3303.3,0.48897422]
[1737785394652,3.69222,3303.4,3303.3,0.00454422]
[1737785403259,0.48442,3303.4,3303.3,0.00454422]
[1737785403565,3.69222,3303.4,3303.3,0.00454422]
[1737785407165,4.79249172,3303.4,3303.3,0.00454422]
[1737785407764,3.69222,3303.4,3303.3,0.00454422]
[1737785411368,4.79249172,3303.4,3303.3,0.00454422]
[1737785415167,3.69222,3303.4,3303.3,0.00454422]
[1737785415661,3.69222,3303.4,3303.3,0.48224422]
[1737785415862,3.69222,3303.4,3303.3,0.99104422]
[1737785421565,3.2078,3303.4,3303.3,0.99104422]
[1737785421869,3.2078,3303.4,3303.3,1.47547422]
[1737785422067,0.4865,3304.1,3303.3,1.47894422]
[1737785422272,0.97082,3304.1,3303.9,1.58460172]
[1737785422475,0.97082,3304.1,3304.0,0.5003]
[1737785422666,0.4865,3304.1,3304.0,0.5003]
[1737785423169,0.97081,3304.1,3304.0,0.5003]
[1737785437679,3.2078,3304.2,3304.0,0.5003]
[1737785437884,3.2078,3304.2,3304.1,1.58458172]
[1737785438180,3.2078,3304.2,3304.1,2.08298172]
[1737785438881,3.6921,3304.2,3304.1,1.59867172]
[1737785439885,3.6921,3304.2,3304.1,1.10027172]
[1737785440284,0.48431,3304.1,3304.0,0.5003]
[1737785440585,0.5226,3304.1,3303.9,1.10027172]
[1737785440775,0.99223,3304.0,3303.9,1.10027172]
[1737785441876,0.5079,3304.0,3303.9,1.58461172]
[1737785442079,3.2078,3304.2,3304.1,0.48431]
[1737785442279,0.9872,3304.8,3304.1,1.10027172]
[1737785442471,0.9872,3304.8,3304.7,1.58449172]
[1737785443071,0.9872,3304.8,3304.7,1.10027172]
[1737785443480,0.9872,3304.8,3304.7,1.59017172]
[1737785443673,0.9872,3304.8,3304.7,0.4899]
[1737785443877,0.9872,3304.8,3304.7,0.97412]
[1737785444679,0.9872,3304.8,3304.7,0.4899]
[1737785445776,0.48424,3304.7,3304.4,0.48426]
[1737785445978,0.48422,3304.7,3304.4,0.48426]
[1737785447786,0.48422,3304.7,3304.3,0.48428]
[1737785448091,0.48422,3304.7,3304.4,0.48426]
[1737785448589,0.48422,3304.7,3304.2,0.4899]
[1737785448790,0.48422,3304.7,3304.5,0.48425]
[1737785448993,0.9872,3304.8,3304.7,0.48422]
[1737785453187,3.2078,3304.9,3304.8,0.48421]
[1737785453378,3.2078,3304.9,3304.8,1.00121]
[1737785457900,0.48417,3305.1,3304.9,0.48419]
[1737785458395,4.19925,3305.3,3305.1,0.48416]
[1737785458691,3.7151,3305.3,3305.2,0.48415]
[1737785458995,4.19924,3305.3,3305.1,0.48416]
[1737785459489,0.48416,3305.2,3305.0,0.48418]
[1737785459892,0.4842,3304.9,3304.7,2.80699345]
[1737785460092,2.04521,3304.8,3304.6,0.48423]
[1737785460593,1.561,3304.8,3304.4,2.83387345]
[1737785460793,0.48422,3304.7,3304.5,0.48425]
[1737785461297,1.561,3304.8,3304.4,0.99536]
[1737785461491,0.48422,3304.7,3304.4,0.48426]
[1737785461891,0.48424,3304.6,3304.4,0.48426]
[1737785462888,1.561,3304.8,3304.4,0.48426]
[1737785463098,0.48425,3304.6,3304.4,0.48426]
[1737785464195,0.48425,3304.6,3304.3,0.48427]
[1737785465694,0.48425,3304.6,3304.4,0.48426]
[1737785470396,1.561,3304.8,3304.2,0.48429]
[1737785470801,0.48426,3304.5,3304.2,0.4843]
[1737785471307,0.4834,3304.4,3304.3,0.48428]
[1737785472099,0.4834,3304.4,3303.9,0.4745]